bitfinex/quotes_SOLUSD_20250318
["timestamp","ask_amount","ask_price","bid_price","bid_amount"]
[1742324601952,0.03,124.81,124.78,21.33893338]
[1742324602648,0.03,124.81,124.77,29.62068682]
[1742324602869,0.03,124.81,124.78,8.0141]
[1742324604150,0.03,124.81,124.77,36.43333338]
[1742324604462,21.33893338,124.8,124.76,28.0151]
[1742324604660,21.33893338,124.8,124.76,35.0951]
[1742324604835,21.36893338,124.81,124.76,56.43403338]
[1742324606835,21.33893338,124.8,124.76,35.0951]
[1742324607131,21.33893338,124.79,124.76,35.0951]
[1742324607355,21.33893338,124.8,124.76,35.0951]
[1742324608335,21.33893338,124.79,124.76,35.0951]
[1742324608764,21.33893338,124.8,124.76,35.0951]
[1742324609662,21.33893338,124.79,124.76,35.0951]
[1742324610250,21.33893338,124.78,124.74,15.0964]
[1742324610452,21.33893338,124.76,124.71,41.52709495]
[1742324610664,21.33893338,124.76,124.72,7.08]
[1742324610958,21.33893338,124.76,124.74,20.0]
[1742324611161,21.33893338,124.77,124.74,20.0]
[1742324612159,21.33893338,124.75,124.72,7.08]
[1742324613361,21.33893338,124.75,124.72,15.0978]
[1742324614039,21.33893338,124.74,124.72,7.08]
[1742324614262,21.33893338,124.73,124.69,8.0198]
[1742324614664,21.33893338,124.74,124.69,29.35873338]
[1742324616249,21.33893338,124.75,124.7,21.33893338]
[1742324617047,21.33893338,124.74,124.69,49.40843338]
[1742324617358,21.33893338,124.73,124.69,29.35873338]
[1742324617588,21.33893338,124.73,124.69,8.0198]
[1742324617862,21.33893338,124.73,124.69,29.35873338]
[1742324618062,21.33893338,124.74,124.69,29.35873338]
[1742324619667,21.33893338,124.74,124.69,49.40843338]
[1742324620044,21.33893338,124.73,124.69,8.0198]
[1742324620244,21.33893338,124.72,124.71,20.0]
[1742324620861,21.33893338,124.72,124.69,0.063]
[1742324621047,21.33893338,124.7,124.69,0.063]
[1742324623149,81.537,124.73,124.69,0.063]
[1742324623470,21.33893338,124.72,124.69,0.063]
[1742324623667,21.33893338,124.71,124.69,0.063]
[1742324625486,21.33893338,124.7,124.69,0.063]
[1742324625649,22.54852891,124.7,124.69,0.063]
[1742324628380,21.33893338,124.7,124.69,0.063]
[1742324649059,13.66164409,124.7,124.69,0.063]
[1742324658584,21.68084409,124.7,124.69,0.063]
[1742324658778,13.66164409,124.7,124.69,0.063]
[1742324659987,21.68084409,124.7,124.69,0.063]
[1742324660591,81.537,124.69,124.67,0.063]
[1742324660793,81.537,124.69,124.61,25.17517413]
[1742324660794,32.59561609,124.63,124.61,11.64426377]
[1742324660995,8.28959553,124.62,124.56,13.72464409]
[1742324661289,13.66164409,124.61,124.56,21.75254409]
[1742324661673,21.95123962,124.62,124.56,13.72464409]
[1742324661877,21.95123962,124.62,124.57,96.8239565]
[1742324661878,20.74164409,124.62,124.57,96.8239565]
[1742324662264,13.66164409,124.61,124.57,75.13501241]
[1742324662611,13.66164409,124.6,124.57,75.13501241]
[1742324663181,13.66164409,124.6,124.59,0.063]
[1742324663388,13.66164409,124.61,124.59,0.063]
[1742324664396,13.66164409,124.6,124.59,0.063]
[1742324664987,7.08,124.62,124.59,8.0893]
[1742324665293,20.74164409,124.62,124.59,0.063]
[1742324665495,13.66164409,124.62,124.59,0.063]
[1742324666292,13.66164409,124.61,124.59,0.063]
[1742324666603,13.66164409,124.6,124.59,20.063]
[1742324666913,13.66164409,124.6,124.59,0.063]
[1742324667203,21.34650078,124.7,124.63,20.0]
[1742324667386,21.34650078,124.7,124.65,21.34650078]
[1742324667597,1.20959553,124.7,124.65,21.34650078]
[1742324667890,21.34650078,124.7,124.65,21.34650078]
[1742324668596,21.34650078,124.7,124.66,8.0218]
[1742324669294,21.34650078,124.69,124.66,8.0218]
[1742324670693,21.34650078,124.69,124.65,8.0224]
[1742324670895,21.34650078,124.7,124.65,28.0785]
[1742324671476,21.34650078,124.69,124.65,28.0785]
[1742324674586,81.537,124.71,124.65,28.0785]
[1742324674587,21.34650078,124.68,124.65,28.0785]
[1742324676879,21.34650078,124.69,124.65,28.0785]
[1742324677399,21.34650078,124.67,124.65,28.0785]
[1742324677703,21.34650078,124.69,124.65,28.0785]
[1742324678500,21.34650078,124.68,124.65,28.0785]
[1742324679802,21.34650078,124.68,124.65,20.0561]
[1742324682888,21.34650078,124.66,124.65,20.0561]
[1742324683087,21.34650078,124.66,124.64,8.0231]
[1742324685310,21.34650078,124.67,124.64,28.0808]
[1742324687497,21.34650078,124.68,124.64,28.0808]
[1742324687699,21.34650078,124.66,124.64,8.0231]
[1742324688702,21.34650078,124.67,124.64,8.0231]
[1742324689010,21.34650078,124.67,124.64,28.0808]
[1742324690007,21.34650078,124.68,124.64,28.0808]
[1742324691112,0.03,124.67,124.64,28.0808]
[1742324694419,13.69673259,124.67,124.64,28.0808]
[1742324697318,13.66673259,124.65,124.64,8.0231]
[1742324699205,13.16673259,124.65,124.64,8.0231]
[1742324699816,13.66673259,124.66,124.64,8.0231]
[1742324700222,0.03,124.67,124.64,28.0808]
[1742324700403,0.03,124.67,124.66,20.0]
[1742324702118,0.03,124.67,124.66,28.0218]
[1742324708614,0.0001,124.67,124.66,28.0218]
[1742324708961,0.0001,124.67,124.66,43.30693259]
[1742324709114,0.0001,124.67,124.66,29.6402]
[1742324709321,0.0001,124.67,124.66,28.0218]
[1742324713929,0.0001,124.67,124.66,41.68853259]
[1742324714122,0.0001,124.67,124.66,48.76853259]
[1742324714526,0.0001,124.67,124.66,35.1018]
[1742324720929,0.0001,124.67,124.66,28.0218]
[1742324721128,13.66683259,124.67,124.66,28.0218]
[1742324722829,0.0001,124.67,124.66,28.0218]
[1742324723034,0.0001,124.67,124.66,49.37583289]
[1742324723248,0.0001,124.67,124.66,74.18660459]
[1742324723631,0.0001,124.67,124.66,79.7568924]
[1742324725660,13.66673259,124.72,124.71,20.0]
[1742324726550,13.66673259,124.72,124.71,28.0186]
[1742324727135,13.66673259,124.72,124.71,8.0186]
[1742324727553,13.66673259,124.72,124.67,20.0525]
[1742324727765,13.66673259,124.69,124.68,8.0205]
[1742324728567,13.66673259,124.7,124.67,20.0525]
[1742324729062,13.66673259,124.69,124.67,20.0525]
[1742324730264,13.66673259,124.7,124.67,20.0525]
[1742324731443,13.66673259,124.69,124.67,20.0525]
[1742324732865,13.66673259,124.68,124.66,8.0218]
[1742324733051,13.66673259,124.67,124.66,8.0218]
[1742324734164,13.66673259,124.67,124.65,28.0781]
[1742324736875,13.66673259,124.66,124.65,8.0224]
[1742324738366,13.66673259,124.66,124.64,8.086]
[1742324738563,13.66673259,124.65,124.64,8.086]
[1742324739837,13.66673259,124.66,124.64,8.086]
[1742324740042,13.66673259,124.66,124.64,0.063]
[1742324740273,13.66673259,124.65,124.64,20.063]
[1742324741465,13.66673259,124.66,124.64,20.063]
[1742324741968,13.66673259,124.65,124.64,28.0861]
[1742324743174,13.66673259,124.65,124.64,8.0861]
[1742324744070,13.66673259,124.65,124.64,0.063]
[1742324747850,41.83270012,124.65,124.64,0.063]
[1742324748056,81.537,124.67,124.64,0.063]
[1742324748278,13.95105573,124.65,124.64,0.063]
[1742324748571,19.85924439,124.66,124.6,13.66673259]
[1742324748572,7.08,124.66,124.6,13.66673259]
[1742324748770,7.08,124.66,124.62,20.0]
[1742324748771,13.66673259,124.64,124.62,20.0]
[1742324749176,13.66673259,124.63,124.59,29.7298]
[1742324749365,13.66673259,124.62,124.59,9.664]
[1742324749559,13.66673259,124.6,124.59,0.063]
[1742324749761,68.33366295,124.6,124.59,0.063]
[1742324749977,68.33366295,124.6,124.56,0.063]
[1742324749978,88.47723048,124.6,124.56,0.063]
[1742324750176,100.470972,124.59,124.56,0.063]
[1742324750367,13.66673259,124.57,124.56,0.063]
[1742324751287,13.66673259,124.57,124.54,176.88660154]
[1742324751580,13.66673259,124.55,124.54,176.88660154]
[1742324751758,21.69563259,124.55,124.54,176.88660154]
[1742324751961,21.69563259,124.55,124.52,0.063]
[1742324751962,76.36256295,124.55,124.52,0.063]
[1742324752161,68.33366295,124.53,124.52,0.063]
[1742324753267,42.82814552,124.53,124.52,0.063]
[1742324753588,21.41407276,124.53,124.52,0.063]
[1742324755390,42.82814552,124.53,124.52,0.063]
[1742324755982,44.03774105,124.53,124.52,0.063]
[1742324756370,21.41407276,124.53,124.52,0.063]
[1742324757973,1.5787,124.57,124.52,20.063]
[1742324758187,21.41407276,124.55,124.53,8.0301]
[1742324758889,21.41407276,124.54,124.53,8.0301]
[1742324760209,21.41407276,124.55,124.53,8.0301]
[1742324760584,21.41407276,124.56,124.53,8.0301]
[1742324762694,21.41407276,124.56,124.53,8.0931]
[1742324762893,21.41407276,124.55,124.53,8.0931]
[1742324763801,21.41407276,124.54,124.53,8.0931]
[1742324764172,21.41407276,124.55,124.53,8.0931]
[1742324764394,21.41407276,124.56,124.53,28.1685]
[1742324764578,83.058,124.61,124.53,49.58257276]
[1742324764775,21.41407276,124.59,124.55,49.51517276]
[1742324764990,21.41407276,124.59,124.55,28.1011]
[1742324765189,21.41407276,124.58,124.55,28.1011]
[1742324766497,21.41407276,124.6,124.56,21.41407276]
[1742324766694,21.41407276,124.6,124.55,89.65967276]
[1742324767098,21.41407276,124.6,124.58,20.0]
[1742324767899,89.84659553,124.63,124.58,20.0]
[1742324767900,21.41407276,124.61,124.58,20.0]
[1742324768687,21.41407276,124.61,124.59,8.0263]
[1742324771102,21.41407276,124.63,124.59,28.0921]
[1742324771609,21.41407276,124.64,124.59,49.50617276]
[1742324772399,21.41407276,124.63,124.59,28.0921]
[1742324773399,31.31016829,124.67,124.59,28.0921]
[1742324773701,21.41407276,124.63,124.59,49.50617276]
[1742324774093,21.41407276,124.63,124.59,28.0921]
[1742324774695,21.44407276,124.63,124.59,28.0921]
[1742324774893,21.44407276,124.63,124.59,8.0263]
[1742324775091,21.41407276,124.61,124.6,20.0]
[1742324775508,21.41407276,124.61,124.57,20.0685]
[1742324775509,21.41407276,124.61,124.57,8.0276]
[1742324775688,21.41407276,124.59,124.57,8.0276]
[1742324777094,21.41407276,124.59,124.58,20.0]
[1742324779009,21.41407276,124.59,124.54,8.0295]
[1742324779188,21.41407276,124.57,124.56,20.0]
[1742324780591,21.41407276,124.58,124.56,20.0]
[1742324780793,21.41407276,124.57,124.56,20.0]
[1742324781886,21.41407276,124.57,124.54,8.0295]
[1742324782095,21.41407276,124.55,124.53,8.0931]
[1742324783393,21.41407276,124.56,124.54,20.0]
[1742324784298,21.41407276,124.56,124.54,28.0292]
[1742324785100,21.41407276,124.55,124.54,28.0292]
[1742324785603,21.41407276,124.55,124.54,20.0]
[1742324785804,21.41407276,124.55,124.53,8.0929]
[1742324786013,21.41407276,124.54,124.53,0.063]
[1742324789115,13.69988948,124.54,124.53,0.063]
[1742324790588,14.90948501,124.54,124.53,0.063]
[1742324791010,96.67251493,124.54,124.53,0.063]
[1742324793514,41.87295701,124.54,124.53,0.063]
[1742324794926,96.67251493,124.54,124.53,0.063]
[1742324795111,41.87295701,124.54,124.53,0.063]
[1742324795825,13.69988948,124.54,124.53,0.063]
[1742324796118,1.20959553,124.55,124.53,0.063]
[1742324796323,13.69988948,124.55,124.53,0.063]
[1742324796698,13.69988948,124.55,124.53,20.063]
[1742324796907,13.69988948,124.54,124.53,0.063]
[1742324797522,21.40309428,124.54,124.53,0.063]
[1742324798824,21.43309428,124.54,124.53,0.063]
[1742324800120,29.46259428,124.54,124.53,0.063]
[1742324800821,69.79966056,124.54,124.53,0.063]
[1742324801322,152.54625609,124.54,124.53,0.063]
[1742324801496,151.33666056,124.54,124.53,0.063]
[1742324804105,129.93356628,124.54,124.53,0.063]
[1742324806929,151.33666056,124.54,124.53,0.063]
[1742324809130,18.933972,124.53,124.52,0.063]
[1742324809338,70.04975609,124.53,124.52,0.063]
[1742324810214,78.07985609,124.53,124.52,0.063]
[1742324811818,84.57787233,124.53,124.52,0.063]
[1742324819138,84.57787233,124.53,124.49,0.063]
[1742324819326,13.70842836,124.5,124.49,0.063]
[1742324820343,0.03,124.54,124.49,0.063]
[1742324820521,13.70842836,124.52,124.49,1.5665]
[1742324821918,13.70842836,124.53,124.5,8.0321]
[1742324822244,13.70842836,124.53,124.5,28.1124]
[1742324822448,13.70842836,124.52,124.5,28.1124]
[1742324822824,0.03,124.54,124.5,28.1124]
[1742324823019,13.70842836,124.52,124.5,28.1124]
[1742324823444,13.70842836,124.51,124.5,8.0321]
[1742324823829,13.70842836,124.51,124.49,0.063]
[1742324824028,13.70842836,124.5,124.49,0.063]
[1742324836963,22.95012389,124.5,124.49,0.063]
[1742324837349,104.55012389,124.5,124.49,0.063]
[1742324838455,18.933972,124.49,124.48,0.063]
[1742324838762,40.67510036,124.49,124.48,0.063]
[1742324839462,40.67510036,124.49,124.47,0.063]
[1742324839763,14.91802389,124.48,124.47,0.063]
[1742324843460,96.51802389,124.48,124.47,0.063]
[1742324845738,103.61802389,124.48,124.47,0.063]
[1742324848775,102.40842836,124.48,124.47,0.063]
[1742324849155,20.80842836,124.48,124.47,0.063]
[1742324850563,81.6,124.49,124.47,0.063]
[1742324850965,226.37842836,124.5,124.47,0.063]
[1742324851278,212.67,124.5,124.47,0.063]
[1742324851973,226.37842836,124.5,124.47,0.063]
[1742324852467,226.37842836,124.5,124.47,8.097]
[1742324853074,226.37842836,124.5,124.47,28.1821]
[1742324853894,212.67,124.5,124.47,41.89052836]
[1742324854181,0.03,124.5,124.47,41.89052836]
[1742324854675,13.70842836,124.48,124.47,8.097]
[1742324855082,13.70842836,124.48,124.47,0.063]
[1742324857081,14.91802389,124.48,124.47,0.063]
[1742324857686,33.56767275,124.48,124.47,0.063]
[1742324859491,13.70842836,124.48,124.47,0.063]
[1742324860584,107.37964886,124.5,124.47,0.063]
[1742324860775,20.83842836,124.5,124.47,0.063]
[1742324862692,13.70842836,124.49,124.47,0.063]
[1742324862898,13.70842836,124.48,124.47,0.063]
[1742324864699,13.70842836,124.49,124.47,0.063]
[1742324865571,20.83842836,124.5,124.47,0.063]
[1742324866792,13.70842836,124.49,124.47,0.063]
[1742324868376,13.73842836,124.49,124.47,0.063]
[1742324869399,0.03,124.49,124.47,0.063]
[1742324875405,13.73842836,124.49,124.47,0.063]
[1742324879514,0.03,124.49,124.47,13.77142836]
[1742324881007,0.03,124.49,124.48,8.0334]
[1742324882016,13.73842836,124.49,124.47,8.0967]
[1742324882189,13.70842836,124.48,124.47,0.063]
[1742324888814,13.73842836,124.49,124.47,0.063]
[1742324890298,0.03,124.49,124.47,0.063]
[1742324893998,13.73842836,124.49,124.47,0.063]
[1742324894306,13.70842836,124.48,124.47,0.063]
[1742324897387,0.03,124.49,124.47,0.063]
[1742324897592,13.73842836,124.49,124.47,0.063]
[1742324898806,13.70842836,124.48,124.47,0.063]
[1742324899890,13.73842836,124.49,124.47,0.063]
[1742324901691,0.03,124.49,124.47,0.063]
[1742324903512,0.03,124.49,124.47,8.097]
[1742324906812,0.03,124.49,124.47,21.80542836]
[1742324907488,0.03,124.49,124.47,8.097]
[1742324907913,0.03,124.49,124.47,20.64030395]
[1742324908607,13.73842836,124.49,124.47,20.64030395]
[1742324909110,0.03,124.49,124.47,20.64030395]
[1742324910014,0.03,124.49,124.47,8.097]
[1742324910209,0.03,124.49,124.47,21.80542836]
[1742324910912,0.0001,124.49,124.48,13.70842836]
[1742324911610,0.0001,124.49,124.47,20.64030395]
[1742324911827,0.0001,124.49,124.47,34.34873231]
[1742324912314,0.0001,124.49,124.48,13.70842836]
[1742324912915,0.0001,124.49,124.48,21.74182836]
[1742324913294,307.99842836,124.54,124.48,81.99232836]
[1742324913596,226.39842836,124.54,124.5,13.70842836]
[1742324913795,13.73842836,124.54,124.5,13.70842836]
[1742324914299,13.73842836,124.54,124.49,13.70842836]
[1742324914497,13.73842836,124.54,124.49,26.25173231]
[1742324914717,13.73842836,124.54,124.5,28.1124]
[1742324915617,0.03,124.54,124.5,41.82082836]
[1742324915817,13.73842836,124.54,124.5,41.82082836]
[1742324916117,0.03,124.54,124.5,81.98142836]
[1742324917615,0.03,124.54,124.52,13.70842836]
[1742324917800,0.03,124.54,124.53,13.70842836]
[1742324917991,0.03,124.54,124.51,2.75506695]
[1742324917992,0.03,124.54,124.52,13.70842836]
[1742324918703,0.03,124.54,124.51,15.25902836]
[1742324918903,0.03,124.54,124.52,21.73922836]
[1742324919396,0.03,124.54,124.53,13.70842836]
[1742324920816,0.03,124.54,124.53,21.73852836]
[1742324921508,0.0001,124.54,124.53,21.73852836]
[1742324921701,0.0001,124.54,124.53,41.87660034]
[1742324923508,0.0001,124.54,124.53,41.5922772]
[1742324923711,0.0001,124.54,124.53,41.87660034]
[1742324924726,0.0001,124.54,124.53,21.73852836]
[1742324924916,0.0001,124.54,124.53,8.0301]
[1742324926327,0.0001,124.54,124.53,21.73852836]
[1742324927522,0.0001,124.54,124.53,22.94261507]
[1742324927823,0.0001,124.54,124.53,21.73852836]
[1742324928221,0.0001,124.54,124.53,40.67250036]
[1742324938115,0.0001,124.54,124.53,40.73550036]
[1742324940227,0.0001,124.54,124.53,95.5692138]
[1742324941215,0.0001,124.54,124.53,40.73550036]
[1742324941509,0.0001,124.54,124.53,21.80152836]
[1742324941712,0.0001,124.54,124.53,8.0931]
[1742324942735,0.0001,124.54,124.53,21.80152836]
[1742324942936,0.0001,124.54,124.53,8.0931]
[1742324944417,0.0001,124.54,124.53,0.063]
[1742324944632,0.0001,124.54,124.53,13.77142836]
[1742324944835,0.0001,124.54,124.53,21.80152836]
[1742324947127,0.0001,124.54,124.53,8.0931]
[1742324948439,0.0001,124.54,124.53,0.063]
[1742324961648,13.70852836,124.54,124.53,0.063]
[1742324962052,20.09912836,124.54,124.53,0.063]
[1742324967147,28.12862836,124.54,124.53,0.063]
[1742324967349,53.85827722,124.54,124.53,0.063]
[1742324968444,190.5763138,124.54,124.53,0.063]
[1742324968947,0.28432314,124.53,124.48,12.54330395]
[1742324969150,13.70842836,124.49,124.47,8.0967]
[1742324969324,82.80959553,124.52,124.47,41.89022836]
[1742324969325,95.30842836,124.52,124.47,41.89022836]
[1742324970047,13.70842836,124.51,124.47,41.89022836]
[1742324972350,13.70842836,124.51,124.47,28.1818]
[1742324973341,13.70842836,124.51,124.47,41.89022836]
[1742324974851,13.70842836,124.51,124.47,28.1818]
[1742324975143,13.70842836,124.49,124.47,8.0967]
[1742324975751,13.70842836,124.48,124.47,0.063]
[1742324978453,41.88539589,124.48,124.47,0.063]
[1742324978838,33.85199589,124.48,124.47,0.063]
[1742324979356,13.70842836,124.48,124.47,0.063]
[1742324988765,40.67580036,124.48,124.47,0.063]
[1742324989063,40.81796193,124.48,124.47,0.063]
[1742324989651,40.9601235,124.48,124.47,0.063]
[1742324990347,0.14216157,124.47,124.46,0.063]
[1742324990679,15.06018546,124.47,124.46,0.063]
[1742324991057,96.8618709,124.47,124.4,8.1015]
[1742324991264,13.70842836,124.42,124.4,8.1015]
[1742324991462,13.70842836,124.43,124.4,8.1015]
[1742324992273,20.14356753,124.45,124.4,21.80992836]
[1742324992459,13.70842836,124.44,124.4,8.1015]
[1742324992857,13.70842836,124.43,124.4,8.1015]
[1742324995275,13.70842836,124.44,124.4,8.1015]
[1742324996181,13.70842836,124.43,124.4,8.1015]
[1742324999973,13.70842836,124.42,124.4,8.1015]
[1742325000183,13.70842836,124.42,124.4,0.063]
[1742325000470,13.70842836,124.41,124.4,0.063]
[1742325001267,13.70842836,124.42,124.4,0.063]
[1742325005289,13.70842836,124.41,124.4,0.063]
[1742325005972,13.70842836,124.42,124.4,0.063]
[1742325008095,13.70842836,124.43,124.4,0.063]
[1742325008259,81.6,124.44,124.4,13.77142836]
[1742325008761,81.6,124.44,124.41,8.0379]
[1742325009163,81.6,124.44,124.41,41.84112836]
[1742325009597,0.03,124.46,124.43,13.70842836]
[1742325010101,0.03,124.46,124.44,13.70842836]
[1742325010458,0.03,124.46,124.43,13.70842836]
[1742325010887,0.03,124.46,124.44,8.036]
[1742325011787,0.03,124.46,124.44,21.74442836]
[1742325011971,102.53058993,124.5,124.45,13.70842836]
[1742325012160,100.81829514,124.49,124.44,28.126]
[1742325012365,13.70842836,124.45,124.44,8.036]
[1742325012567,13.70842836,124.45,124.41,8.0379]
[1742325012780,13.70842836,124.44,124.41,8.0379]
[1742325015768,13.70842836,124.45,124.41,8.0379]
[1742325015973,102.38842836,124.46,124.41,21.74632836]
[1742325016175,7.08,124.46,124.42,13.70842836]
[1742325016374,7.08,124.46,124.43,13.70842836]
[1742325016579,95.30842836,124.48,124.43,13.70842836]
[1742325017081,81.6,124.48,124.44,13.70842836]
[1742325017670,81.6,124.48,124.45,8.0353]
[1742325019289,13.70842836,124.49,124.45,41.83202836]
[1742325019475,0.03,124.46,124.45,41.83202836]
[1742325021880,0.03,124.46,124.45,8.0353]
[1742325022995,13.73842836,124.46,124.44,8.036]
[1742325025090,13.73842836,124.46,124.43,8.0366]
[1742325026791,0.03,124.46,124.43,8.0366]
[1742325027303,13.73842836,124.46,124.43,8.0366]
[1742325028907,13.73842836,124.46,124.42,28.1294]
[1742325030200,13.73842836,124.46,124.42,41.83782836]
[1742325030422,0.03,124.46,124.43,13.70842836]
[1742325030902,0.03,124.46,124.44,8.036]
[1742325033306,0.03,124.46,124.44,21.74442836]
[1742325035000,0.03,124.46,124.44,8.036]
[1742325036606,0.03,124.46,124.44,21.74442836]
[1742325041211,0.03,124.46,124.44,8.036]
[1742325046827,0.03,124.46,124.44,21.74442836]
[1742325048321,0.03,124.46,124.44,8.036]
[1742325049508,0.03,124.46,124.44,21.74442836]
[1742325052724,0.03,124.46,124.44,8.036]
[1742325052958,0.03,124.46,124.44,21.74442836]
[1742325053535,0.03,124.46,124.44,8.036]
[1742325054642,13.73842836,124.46,124.44,8.036]
[1742325055132,13.73842836,124.46,124.43,8.0996]
[1742325055308,0.03,124.46,124.43,8.0996]
[1742325055508,0.03,124.46,124.43,28.1912]
[1742325056531,0.03,124.46,124.43,41.89962836]
[1742325059854,0.03,124.46,124.43,54.44293231]
[1742325060139,0.03,124.46,124.44,13.70842836]
[1742325060344,0.03,124.46,124.45,13.70842836]
[1742325061552,0.03,124.46,124.45,34.28703231]
[1742325062046,0.03,124.46,124.45,46.83033627]
[1742325062350,0.03,124.46,124.45,38.7022957]
[1742325062716,0.03,124.46,124.45,8.0353]
[1742325064422,0.03,124.46,124.45,20.6899649]
[1742325064933,13.73842836,124.46,124.45,12.6546649]
[1742325065140,13.73842836,124.46,124.44,20.7532649]
[1742325065442,0.03,124.46,124.44,20.7532649]
[1742325065644,13.73842836,124.46,124.44,12.7176649]
[1742325065941,13.73842836,124.46,124.44,20.7536649]
[1742325065942,13.70842836,124.45,124.44,20.7536649]
[1742325066336,13.73842836,124.46,124.44,8.099]
[1742325067987,0.03,124.46,124.44,8.099]
[1742325070355,0.03,124.46,124.44,20.7536649]
[1742325073459,0.03,124.46,124.44,8.099]
[1742325078653,0.03,124.46,124.44,0.063]
[1742325083945,13.73842836,124.46,124.44,0.063]
[1742325086054,13.70842836,124.45,124.44,0.063]
[1742325088549,0.03,124.46,124.44,0.063]
[1742325090662,13.73842836,124.46,124.44,0.063]
[1742325090872,13.70842836,124.45,124.44,0.063]
[1742325097770,0.14216157,124.44,124.43,0.063]
[1742325098002,18.933972,124.43,124.4,12.7176649]
[1742325098150,13.70842836,124.41,124.4,12.7176649]
[1742325098355,13.70842836,124.41,124.4,0.063]
[1742325099678,41.88989589,124.41,124.4,0.063]
[1742325100575,42.03205746,124.41,124.4,0.063]
[1742325101172,123.63205746,124.41,124.4,0.063]
[1742325101365,122.42246193,124.41,124.4,0.063]
[1742325102184,122.5646235,124.41,124.4,0.063]
[1742325104176,40.9646235,124.41,124.4,0.063]
[1742325104378,42.17421903,124.41,124.4,0.063]
[1742325105863,34.13631903,124.41,124.4,0.063]
[1742325106075,33.99415746,124.41,124.4,0.063]
[1742325106288,33.85199589,124.41,124.4,0.063]
[1742325110789,41.88989589,124.41,124.4,0.063]
[1742325112588,33.85199589,124.41,124.4,0.063]
[1742325114765,41.88989589,124.41,124.4,0.063]
[1742325114965,33.85199589,124.41,124.4,0.063]
[1742325118269,40.93199589,124.41,124.4,0.063]
[1742325118599,27.22356753,124.41,124.4,0.063]
[1742325118778,40.93199589,124.41,124.4,0.063]
[1742325120186,21.99802389,124.41,124.4,0.063]
[1742325120392,20.78842836,124.41,124.4,0.063]
[1742325120788,13.70842836,124.42,124.4,0.063]
[1742325120968,27.3957291,124.43,124.4,0.063]
[1742325121164,13.70842836,124.42,124.4,0.063]
[1742325121386,13.70842836,124.41,124.4,0.063]
[1742325121893,13.70842836,124.42,124.4,0.063]
[1742325122073,13.70842836,124.41,124.4,0.063]
[1742325131282,32.64240036,124.41,124.4,0.063]
[1742325131600,0.28432314,124.4,124.39,0.063]
[1742325131784,15.20234703,124.4,124.39,0.063]
[1742325132773,23.24084703,124.4,124.39,0.063]
[1742325133187,33.85199589,124.4,124.39,0.063]
[1742325133402,13.70842836,124.4,124.39,0.063]
[1742325134491,18.64964886,124.41,124.39,0.063]
[1742325134789,13.70842836,124.4,124.39,0.063]
[1742325136079,14.91802389,124.4,124.39,0.063]
[1742325136589,123.49049589,124.4,124.39,0.063]
[1742325136789,122.28090036,124.4,124.39,0.063]
[1742325137399,114.24240036,124.4,124.39,0.063]
[1742325137704,115.45199589,124.4,124.39,0.063]
[1742325140205,82.80959553,124.4,124.39,0.063]
[1742325140506,95.30842836,124.4,124.39,0.063]
[1742325144490,122.5652235,124.4,124.39,0.063]
[1742325145095,18.933972,124.39,124.38,0.063]
[1742325145294,88.68570933,124.39,124.38,0.063]
[1742325146095,94.98183658,124.39,124.38,0.063]
[1742325146595,103.02103658,124.39,124.38,0.063]
[1742325147215,103.30535972,124.39,124.38,0.063]
[1742325147419,104.81255972,124.39,124.38,0.063]
[1742325153823,43.68271903,124.39,124.38,0.063]
[1742325154020,98.51643247,124.39,124.38,0.063]
[1742325154218,104.93620201,124.39,124.38,0.063]
[1742325156124,104.93620201,124.39,124.36,0.063]
[1742325156306,13.9927515,124.37,124.36,0.063]
[1742325156501,22.26234703,124.37,124.36,0.063]
[1742325157712,30.30284703,124.37,124.36,0.063]